bitfinex/quotes_SOLUSD_20241019
["timestamp","ask_amount","ask_price","bid_price","bid_amount"]
[1729355107540,8.7157634,156.32,156.2,16.5443]
[1729355107768,8.7157634,156.32,156.22,23.776884]
[1729355108066,8.7157634,156.32,156.23,16.5443]
[1729355109173,8.7157634,156.32,156.24,23.776884]
[1729355113659,8.7157634,156.32,156.25,6.5304]
[1729355115044,19.21,156.37,156.25,6.5304]
[1729355115356,19.21,156.37,156.26,16.5443]
[1729355116245,14.6785,156.38,156.26,16.5443]
[1729355116443,23.776884,156.37,156.26,16.5443]
[1729355116684,6.3955,156.36,156.26,16.5443]
[1729355116974,30.172884,156.35,156.26,16.5443]
[1729355117843,19.21,156.33,156.22,16.5443]
[1729355118050,23.776884,156.32,156.22,16.5443]
[1729355118676,30.0,156.25,156.22,16.5443]
[1729355128490,30.0,156.25,156.23,6.0219]
[1729355129071,14.6806,156.34,156.23,6.0219]
[1729355131062,8.2839,156.34,156.23,6.0219]
[1729355131267,19.21,156.35,156.23,6.0219]
[1729355136778,25.6061,156.35,156.23,6.0219]
[1729355138193,19.21,156.35,156.23,6.0219]
[1729355138397,30.173184,156.34,156.23,6.0219]
[1729355138893,6.3967,156.33,156.23,6.0219]
[1729355143482,30.174084,156.32,156.23,6.0219]
[1729355143677,30.174084,156.32,156.22,16.5443]
[1729355144009,6.3975,156.31,156.22,16.5443]
[1729355144221,6.3993,156.27,156.19,6.5371]
[1729355144501,6.3983,156.29,156.19,6.5371]
[1729355145408,6.4427,156.31,156.19,6.5371]
[1729355145695,23.776884,156.31,156.19,6.5371]
[1729355147086,8.2839,156.32,156.2,23.776884]
[1729355150392,8.2839,156.32,156.19,6.5371]
[1729355150393,6.3982,156.3,156.19,6.5371]
[1729355150992,49.384484,156.31,156.19,6.5371]
[1729355151303,23.776884,156.31,156.19,6.5371]
[1729355152389,8.2839,156.32,156.2,23.776884]
[1729355157114,14.6811,156.32,156.2,23.776884]
[1729355159788,33.8911,156.32,156.2,23.776884]
[1729355159993,23.776884,156.31,156.19,6.5371]
[1729355161613,49.384684,156.31,156.19,6.5371]
[1729355163991,6.3979,156.3,156.19,6.5371]
[1729355166910,6.3979,156.3,156.19,6.5371]
[1729355168992,30.45201689,156.31,156.19,6.5371]
[1729355169193,23.776884,156.31,156.19,6.5371]
[1729355169491,23.776884,156.31,156.2,15.4107]
[1729355170087,27.4939,156.32,156.2,15.4107]
[1729355170291,19.21,156.32,156.2,15.4107]
[1729355179306,42.986884,156.32,156.2,15.4107]
[1729355179528,6.3975,156.31,156.2,15.4107]
[1729355180314,30.175184,156.29,156.2,15.4107]
[1729355180733,23.776884,156.29,156.2,15.4107]
[1729355181526,23.776884,156.33,156.2,15.4107]
[1729355181746,23.776884,156.32,156.2,15.4107]
[1729355183417,19.21,156.33,156.21,23.776884]
[1729355183618,14.7266,156.35,156.23,23.776884]
[1729355183803,8.88937001,156.36,156.23,23.776884]
[1729355184008,8.88937001,156.36,156.24,15.7221]
[1729355185737,21.07071576,156.39,156.27,23.776884]
[1729355186024,8.2839,156.39,156.27,23.776884]
[1729355186210,19.21,156.4,156.27,23.776884]
[1729355186820,19.21,156.42,156.29,23.776884]
[1729355187414,25.6037,156.41,156.28,22.1776]
[1729355188021,19.21,156.41,156.28,22.1776]
[1729355188410,23.776884,156.4,156.28,22.1776]
[1729355192715,49.380684,156.4,156.28,22.1776]
[1729355194838,19.21,156.38,156.28,22.1776]
[1729355195040,30.171984,156.37,156.28,22.1776]
[1729355202016,19.21,156.36,156.28,22.1776]
[1729355202214,30.171984,156.37,156.28,22.1776]
[1729355202745,6.3955,156.36,156.28,22.1776]
[1729355203841,6.3955,156.36,156.28,15.7221]
[1729355204427,30.172884,156.35,156.28,15.7221]
[1729355205755,25.6053,156.37,156.28,15.7221]
[1729355206045,23.776884,156.36,156.28,15.7221]
[1729355210240,30.172384,156.36,156.28,15.7221]
[1729355243645,6.3943,156.39,156.28,15.7221]
[1729355243851,6.3943,156.39,156.29,6.6236]
[1729355244063,25.6043,156.39,156.29,6.6236]
[1729355245363,23.776884,156.38,156.29,6.6236]
[1729355245680,30.171584,156.38,156.29,6.6236]
[1729355246365,6.3954,156.37,156.29,6.6236]
[1729355246568,23.776884,156.36,156.29,6.6236]
[1729355246768,30.172484,156.36,156.29,6.6236]
[1729355248470,30.172484,156.36,156.28,15.7221]
[1729355253374,19.21,156.35,156.28,15.7221]
[1729355253573,30.172484,156.36,156.28,15.7221]
[1729355261276,23.776884,156.36,156.28,15.7221]
[1729355261577,6.67076734,156.37,156.29,6.2951]
[1729355261769,6.58246701,156.39,156.29,6.2951]
[1729355264066,12.97666701,156.39,156.29,6.2951]
[1729355265364,6.395,156.38,156.29,6.2951]
[1729355265762,6.58246701,156.39,156.29,6.2951]
[1729355265962,12.97676701,156.39,156.29,6.2951]
[1729355270171,6.58246701,156.39,156.29,6.2951]
[1729355270678,6.58246701,156.39,156.3,15.0157]
[1729355270888,6.58246701,156.39,156.3,14.5157]
[1729355271268,0.6400829,156.43,156.29,23.776884]
[1729355271591,0.6400829,156.43,156.32,6.2951]
[1729355273994,0.6400829,156.43,156.33,15.0157]
[1729355285179,0.6400829,156.43,156.35,23.776884]
[1729355285383,0.6400829,156.43,156.36,15.5448]
[1729355290880,7.0326829,156.43,156.36,15.5448]
[1729355291487,0.6400829,156.43,156.36,15.5448]
[1729355294513,0.6400829,156.43,156.38,23.776884]
[1729355294684,0.6400829,156.43,156.39,15.2946]
[1729355300180,23.776884,156.42,156.33,15.2946]
[1729355300386,19.8500829,156.43,156.33,15.2946]
[1729355300597,0.6400829,156.43,156.33,15.2946]
[1729355300781,30.0,156.38,156.33,15.2946]
[1729355307201,0.6400829,156.43,156.33,15.2946]
[1729355321424,0.6400829,156.43,156.34,23.776884]
[1729355326041,0.6400829,156.43,156.34,23.776884]
[1729355328207,0.6400829,156.43,156.36,23.776884]
[1729355332034,0.6400829,156.43,156.38,23.776884]
[1729355332633,0.6400829,156.43,156.37,25.65262876]
[1729355338043,0.6400829,156.43,156.38,23.776884]
[1729355354656,0.6400829,156.43,156.37,25.65262876]
[1729355360864,0.6400829,156.43,156.37,10.47442876]
[1729355364155,0.6400829,156.43,156.38,40.166884]
[1729355364655,0.6400829,156.43,156.39,6.6611]
[1729355386876,0.6400829,156.43,156.38,16.39]
[1729355396159,0.6400829,156.43,156.39,23.776884]
[1729355401086,0.6400829,156.43,156.38,16.39]
[1729355408495,0.6400829,156.43,156.39,23.776884]
[1729355411294,0.6400829,156.43,156.38,16.39]
[1729355413278,0.6400829,156.43,156.37,10.47442876]
[1729355418795,0.6400829,156.43,156.38,23.776884]
[1729355419510,0.6400829,156.43,156.4,23.776884]
[1729355419684,0.6400829,156.43,156.4,30.436184]
[1729355425821,0.6400829,156.43,156.4,37.6670398]
[1729355432505,0.6400829,156.43,156.4,30.436184]
[1729355435609,0.6400829,156.43,156.4,23.776884]
[1729355462022,0.6400829,156.43,156.42,23.776884]
[1729355463223,0.6400829,156.43,156.42,29.10243766]
[1729355463419,0.6400829,156.43,156.42,45.30563766]
[1729355464124,6.6046,156.57,156.43,22.6869]
[1729355464423,6.6046,156.57,156.44,29.10243766]
[1729355466523,6.6046,156.57,156.45,7.14801691]
[1729355466739,6.6046,156.57,156.46,29.10243766]
[1729355467042,0.6400829,156.59,156.47,16.2032]
[1729355467228,0.6400829,156.59,156.48,23.776884]
[1729355471548,0.6400829,156.59,156.5,23.776884]
[1729355472432,6.3848,156.63,156.6,37.92762588]
[1729355475149,6.3841,156.64,156.6,37.92762588]
[1729355475649,6.3844,156.63,156.6,37.92762588]
[1729355477248,22.67044293,156.65,156.6,37.92762588]
[1729355477554,22.4122,156.65,156.6,37.92762588]
[1729355479635,16.0284,156.65,156.6,37.92762588]
[1729355479833,22.412,156.65,156.6,37.92762588]
[1729355483560,22.412,156.65,156.53,23.776884]
[1729355487963,16.0284,156.65,156.53,23.776884]
[1729355488365,22.4121,156.65,156.54,6.2438]
[1729355488952,23.776884,156.66,156.54,6.2438]
[1729355489957,6.64294707,156.68,156.54,6.2438]
[1729355489958,6.64294707,156.68,156.56,15.5428]
[1729355490267,6.64294707,156.68,156.57,23.776884]
[1729355490268,6.3826,156.68,156.57,23.776884]
[1729355491141,0.0630754,156.69,156.57,23.776884]
[1729355491461,23.776884,156.68,156.57,23.776884]
[1729355492953,6.3824,156.68,156.57,23.776884]
[1729355493334,6.4451754,156.69,156.57,23.776884]
[1729355494146,23.776884,156.68,156.57,23.776884]
[1729355495340,23.776884,156.68,156.56,15.5428]
[1729355495541,23.776884,156.66,156.56,15.5428]
[1729355497348,6.382,156.69,156.56,15.5428]
[1729355497548,6.3816,156.7,156.57,6.2438]
[1729355497758,6.3821,156.69,156.57,6.2438]
[1729355498857,23.776884,156.68,156.57,6.2438]
[1729355499742,23.776884,156.69,156.57,6.2438]
[1729355500154,23.776884,156.7,156.57,6.2438]
[1729355500477,23.776884,156.68,156.57,6.2438]
[1729355501062,6.3816,156.7,156.57,6.2438]
[1729355501259,23.776884,156.69,156.57,6.2438]
[1729355502969,6.3816,156.7,156.57,6.2438]
[1729355502970,23.776884,156.7,156.57,6.2438]
[1729355503569,30.158584,156.7,156.57,6.2438]
[1729355504873,23.776884,156.68,156.57,6.2438]
[1729355518269,6.383,156.67,156.57,6.2438]
[1729355518478,6.3824,156.68,156.57,6.2438]
[1729355518783,23.776884,156.67,156.57,6.2438]
[1729355519156,30.158984,156.69,156.57,6.2438]
[1729355521256,6.383,156.67,156.57,6.2438]
[1729355521459,23.776884,156.69,156.57,6.2438]
[1729355521654,23.776884,156.67,156.57,6.2438]
[1729355521952,23.776884,156.66,156.57,6.2438]
[1729355523883,30.160084,156.66,156.57,6.2438]
[1729355524458,27.727584,156.67,156.57,6.2438]
[1729355524772,23.776884,156.64,156.56,15.5428]
[1729355525157,23.776884,156.62,156.56,15.5428]
[1729355525974,23.776884,156.63,156.56,15.5428]
[1729355526661,23.776884,156.61,156.53,6.0054]
[1729355527074,23.776884,156.62,156.53,6.0054]
[1729355528977,23.776884,156.63,156.53,6.0054]
[1729355529571,30.161284,156.63,156.53,6.0054]
[1729355530969,30.161384,156.63,156.53,6.0054]
[1729355531185,23.776884,156.63,156.53,6.0054]
[1729355536377,6.385,156.62,156.53,6.0054]
[1729355536695,23.776884,156.61,156.53,6.0054]
[1729355540882,23.776884,156.61,156.52,16.6092]
[1729355547801,30.162284,156.61,156.52,16.6092]
[1729355551504,6.384,156.64,156.53,6.4047]
[1729355552777,23.776884,156.66,156.53,6.4047]
[1729355553079,23.776884,156.64,156.53,6.4047]
[1729355556388,23.776884,156.64,156.54,15.4728]
[1729355557197,0.0630754,156.67,156.56,15.4728]
[1729355557594,0.0630754,156.67,156.57,6.4047]
[1729355558396,0.0630754,156.67,156.58,15.4728]
[1729355559518,0.0630754,156.67,156.59,6.4047]
[1729355574490,23.776884,156.65,156.58,15.4728]
[1729355575911,6.3834,156.66,156.58,15.4728]
[1729355576715,19.18,156.65,156.58,15.4728]
[1729355576895,6.3834,156.66,156.58,15.4728]
[1729355577799,23.776884,156.65,156.58,15.4728]
[1729355580813,0.0630754,156.67,156.58,15.4728]
[1729355581006,0.0630754,156.67,156.59,6.6457]
[1729355585339,0.0630754,156.67,156.58,15.4728]
[1729355585340,23.776884,156.65,156.58,15.4728]
[1729355586512,30.160484,156.65,156.58,15.4728]
[1729355587104,23.776884,156.65,156.58,15.4728]
[1729355588039,30.160584,156.65,156.58,15.4728]
[1729355590529,23.776884,156.63,156.58,15.4728]
[1729355597039,23.776884,156.65,156.58,15.4728]
[1729355601752,23.776884,156.66,156.58,15.4728]
[1729355606650,0.0630754,156.67,156.59,6.1174]
[1729355612957,0.0630754,156.67,156.6,15.362]
[1729355613748,0.0630754,156.67,156.62,15.362]
[1729355652278,0.0630754,156.67,156.63,23.776884]
[1729355652587,0.0630754,156.67,156.64,6.1586]
[1729355653077,0.0630754,156.67,156.65,16.5795]
[1729355656259,0.6400829,156.75,156.66,23.776884]
[1729355658597,0.6400829,156.75,156.65,16.5795]
[1729355667482,0.6400829,156.75,156.68,15.4208]
[1729355706697,0.6400829,156.75,156.69,6.2572]
[1729355706905,0.6400829,156.75,156.71,15.3567]
[1729355707093,0.6400829,156.75,156.73,6.2572]
[1729355708493,0.5960829,156.75,156.73,6.2572]
[1729355708833,0.5520829,156.75,156.73,6.2572]
[1729355718797,257.6149,156.89,156.74,40.4091507]
[1729355719124,0.6149,156.89,156.74,48.77341034]
[1729355720217,23.776884,156.88,156.74,48.77341034]
[1729355722517,23.776884,156.88,156.74,23.72095964]
[1729355722913,23.776884,156.88,156.75,23.776884]
[1729355723112,23.776884,156.88,156.75,33.69930878]
[1729355724898,0.6149,156.89,156.76,6.5645]
[1729355725224,0.6149,156.89,156.78,16.456]
[1729355727423,0.6149,156.89,156.79,23.776884]
[1729355728221,0.6149,156.89,156.78,16.456]
[1729355728398,23.776884,156.88,156.78,16.456]
[1729355728793,23.776884,156.88,156.76,6.5645]
[1729355729013,23.776884,156.86,156.76,6.5645]
[1729355729410,6.3743,156.88,156.76,6.5645]
[1729355729806,23.776884,156.87,156.76,6.5645]
[1729355730717,23.776884,156.88,156.76,6.5645]
[1729355730927,23.776884,156.85,156.76,6.5645]
[1729355732225,23.776884,156.85,156.75,9.92242478]
[1729355732408,30.152384,156.85,156.75,9.92242478]
[1729355733798,30.0,156.79,156.75,9.92242478]
[1729355735033,23.776884,156.83,156.75,9.92242478]
[1729355735899,30.153184,156.83,156.75,9.92242478]
[1729355736120,23.776884,156.83,156.75,9.92242478]
[1729355736335,30.153484,156.83,156.75,9.92242478]
[1729355738027,23.776884,156.81,156.75,9.92242478]
[1729355739202,30.0,156.78,156.75,9.92242478]
[1729355743433,30.0,156.78,156.72,6.1088]
[1729355751112,6.3772,156.81,156.72,6.1088]
[1729355751113,23.776884,156.8,156.72,6.1088]
[1729355754329,30.0,156.77,156.72,6.1088]
[1729355756516,23.776884,156.8,156.72,6.1088]
[1729355757826,6.3767,156.83,156.72,6.1088]
[1729355758134,23.776884,156.82,156.72,6.1088]
[1729355760039,6.3773,156.81,156.7,16.2631]
[1729355760215,23.776884,156.8,156.7,16.2631]
[1729355761247,30.154384,156.8,156.7,16.2631]
[1729355762416,23.776884,156.77,156.7,16.2631]
[1729355763438,23.776884,156.78,156.7,16.2631]
[1729355765219,23.776884,156.78,156.68,6.5244]
[1729355766439,53.776884,156.76,156.66,16.6062]
[1729355766825,60.156284,156.76,156.66,16.6062]
[1729355767025,53.776884,156.76,156.66,16.6062]
[1729355769743,23.776884,156.76,156.66,16.6062]
[1729355772341,23.776884,156.77,156.66,16.6062]
[1729355772544,30.155984,156.77,156.66,16.6062]
[1729355774924,23.776884,156.74,156.66,16.6062]
[1729355779250,42.926884,156.74,156.66,16.6062]
[1729355779453,23.776884,156.74,156.66,16.6062]
[1729355781040,23.776884,156.78,156.66,16.6062]
[1729355781447,0.6149,156.83,156.67,13.92651464]
[1729355781950,19.7649,156.83,156.67,13.92651464]
[1729355782330,19.7649,156.83,156.68,16.3682]
[1729355782638,0.6149,156.83,156.69,6.0272]
[1729355782832,0.6149,156.83,156.7,16.3682]
[1729355783033,0.6149,156.83,156.7,24.26751464]
[1729355783345,7.62080271,156.84,156.71,6.0272]
[1729355783525,7.62080271,156.84,156.72,16.3682]
[1729355784451,23.776884,156.83,156.72,16.3682]
[1729355787327,23.776884,156.84,156.72,16.3682]
[1729355793859,30.153084,156.84,156.72,16.3682]
[1729355795047,23.776884,156.84,156.72,16.3682]
[1729355802249,30.153084,156.84,156.72,16.3682]
[1729355802562,23.776884,156.82,156.72,16.3682]
[1729355802857,23.776884,156.8,156.72,16.3682]
[1729355803646,23.776884,156.81,156.72,16.3682]
[1729355804249,30.154184,156.81,156.72,16.3682]
[1729355806060,49.304184,156.81,156.72,16.3682]
[1729355806267,23.776884,156.79,156.72,16.3682]
[1729355808172,23.776884,156.77,156.72,16.3682]
[1729355808352,23.776884,156.78,156.72,16.3682]
[1729355808544,23.776884,156.78,156.67,16.3128]
[1729355808545,23.776884,156.76,156.67,16.3128]
[1729355815375,23.776884,156.77,156.67,16.3128]
[1729355816973,19.15,156.76,156.67,16.3128]
[1729355817162,23.776884,156.77,156.67,16.3128]
[1729355820481,23.776884,156.75,156.67,16.3128]
[1729355823375,23.776884,156.76,156.67,16.3128]
[1729355823963,6.378,156.79,156.67,16.3128]
[1729355824553,6.3784,156.78,156.67,16.3128]
[1729355825279,23.776884,156.77,156.67,16.3128]
[1729355826583,6.3791,156.76,156.67,16.3128]
[1729355826758,23.776884,156.75,156.67,16.3128]
[1729355829179,23.776884,156.76,156.67,16.3128]
[1729355830679,7.46594062,156.77,156.67,16.3128]
[1729355839904,23.776884,156.76,156.67,16.3128]
[1729355843271,30.156184,156.76,156.67,16.3128]
[1729355848799,23.776884,156.76,156.67,16.3128]
[1729355877516,13.62208215,156.81,156.67,16.3128]
[1729355877717,6.3776,156.8,156.67,16.3128]
[1729355878614,6.378,156.79,156.67,16.3128]
[1729355878926,23.776884,156.78,156.67,16.3128]
[1729355880019,30.155284,156.78,156.67,16.3128]
[1729355880401,23.776884,156.78,156.67,16.3128]
[1729355880723,23.776884,156.76,156.67,16.3128]
[1729355880919,6.3799,156.75,156.67,16.3128]
[1729355881125,23.776884,156.74,156.67,16.3128]
[1729355882504,23.776884,156.75,156.67,16.3128]
[1729355882700,23.776884,156.76,156.67,16.3128]
[1729355884721,30.156084,156.76,156.67,16.3128]
[1729355888731,23.776884,156.74,156.67,16.3128]
[1729355888927,30.156084,156.76,156.67,16.3128]
[1729355889742,23.776884,156.76,156.67,16.3128]
[1729355890431,30.156084,156.76,156.67,16.3128]
[1729355891928,23.776884,156.76,156.67,16.3128]
[1729355918459,7.45393729,156.77,156.67,16.3128]
[1729355920746,23.776884,156.78,156.67,16.3128]
[1729355941259,30.155484,156.78,156.67,16.3128]
[1729355941465,23.776884,156.76,156.67,16.3128]
[1729355941637,30.156184,156.76,156.67,16.3128]
[1729355944367,23.776884,156.77,156.67,16.3128]
[1729355944546,30.155684,156.77,156.67,16.3128]
[1729355944745,23.776884,156.77,156.67,16.3128]
[1729355947272,3.9507,156.81,156.69,15.9623]
[1729355947273,23.776884,156.81,156.69,15.9623]
[1729355948341,23.776884,156.8,156.69,15.9623]
[1729355952366,30.154684,156.8,156.69,15.9623]
[1729355954567,23.776884,156.8,156.69,15.9623]
[1729355960076,42.926884,156.8,156.69,15.9623]
[1729355960256,23.776884,156.8,156.69,15.9623]
[1729355973960,30.154584,156.8,156.69,15.9623]
[1729355977585,23.776884,156.8,156.69,15.9623]
[1729355981388,23.776884,156.8,156.7,6.4061]
[1729355981604,7.15770599,156.83,156.71,15.1757]
[1729355981895,7.15770599,156.83,156.68,6.25529229]
[1729355981896,7.15770599,156.83,156.73,15.1757]
[1729355983788,7.15770599,156.83,156.74,6.4061]
[1729355992799,23.776884,156.86,156.74,6.4061]
[1729355994499,23.776884,156.87,156.75,15.1757]
[1729355995004,23.776884,156.85,156.75,15.1757]
[1729355995296,31.22541917,156.85,156.75,15.1757]
[1729356001409,23.776884,156.83,156.75,15.1757]
[1729356003006,47.492484,156.84,156.71,16.0191]
[1729356003210,23.776884,156.79,156.71,16.0191]
[1729356003703,23.776884,156.8,156.71,16.0191]
[1729356003911,30.154684,156.8,156.71,16.0191]
[1729356004208,23.776884,156.8,156.71,16.0191]
[1729356016301,17.58741099,156.84,156.71,16.0191]
[1729356016494,0.6149,156.84,156.72,6.1125]
[1729356016815,13.82413517,156.85,156.73,16.0191]
[1729356018289,23.776884,156.84,156.73,16.0191]
[1729356020029,23.776884,156.81,156.73,16.0191]
[1729356020213,23.776884,156.82,156.73,16.0191]
[1729356020514,23.776884,156.8,156.73,16.0191]
[1729356020918,6.3779,156.79,156.73,16.0191]
[1729356021125,23.776884,156.78,156.72,6.1125]
[1729356021294,23.776884,156.78,156.69,16.0191]
[1729356021295,23.776884,156.78,156.69,22.2972]
[1729356021495,24.391784,156.79,156.69,22.2972]
[1729356021701,23.776884,156.76,156.69,22.2972]
[1729356023608,30.155984,156.76,156.69,16.0191]
[1729356024631,23.776884,156.74,156.66,15.69]
[1729356032328,23.776884,156.75,156.66,15.69]
[1729356033645,30.156484,156.75,156.66,15.69]
[1729356036225,6.38,156.74,156.66,15.69]
[1729356036421,23.776884,156.73,156.66,15.69]
[1729356037014,23.776884,156.7,156.62,15.69]
[1729356037543,6.3821,156.69,156.61,6.2781]
[1729356037833,23.776884,156.68,156.61,6.2781]
[1729356046245,23.776884,156.69,156.61,6.2781]
[1729356046429,23.776884,156.7,156.61,6.2781]
[1729356048540,16.97764433,156.73,156.62,15.4065]
[1729356048928,10.59704433,156.73,156.62,15.4065]
[1729356049123,6.3808,156.72,156.62,15.4065]
[1729356049328,14.75115318,156.74,156.62,15.4065]
[1729356049732,23.776884,156.73,156.62,15.4065]
[1729356049939,30.157384,156.73,156.62,15.4065]
[1729356050135,6.3805,156.73,156.62,15.4065]
[1729356051448,23.776884,156.72,156.62,15.4065]
[1729356052928,23.776884,156.71,156.62,15.4065]
[1729356053630,30.158184,156.71,156.62,15.4065]
[1729356055441,23.776884,156.72,156.62,15.4065]
[1729356055637,8.37115318,156.74,156.62,15.4065]
[1729356055839,14.75115318,156.74,156.62,15.4065]
[1729356056241,7.75625318,156.74,156.62,15.4065]
[1729356058147,23.776884,156.73,156.62,15.4065]
[1729356060528,23.776884,156.73,156.63,6.2292]
[1729356065156,7.75625318,156.74,156.65,6.4558]
[1729356065457,7.75625318,156.74,156.66,15.0173]
[1729356066562,23.776884,156.73,156.66,15.0173]
[1729356066945,30.157584,156.73,156.65,6.4558]
[1729356068555,30.0,156.67,156.65,6.4558]
[1729356078673,30.0,156.67,156.63,7.08363417]
[1729356085773,30.772484,156.73,156.63,7.08363417]
[1729356087182,23.776884,156.71,156.63,7.08363417]
[1729356087364,30.772484,156.73,156.63,7.08363417]
[1729356091378,24.391784,156.73,156.63,7.08363417]
[1729356094081,30.772184,156.73,156.63,7.08363417]
[1729356095282,23.776884,156.73,156.63,7.08363417]
[1729356109990,30.157384,156.73,156.63,7.08363417]
[1729356115881,30.157384,156.73,156.62,15.0173]
[1729356137096,23.776884,156.73,156.62,15.0173]
[1729356137301,23.776884,156.71,156.62,15.0173]
[1729356157838,23.776884,156.72,156.62,15.0173]
[1729356158345,23.776884,156.73,156.62,15.0173]
[1729356158549,31.2726283,156.73,156.62,15.0173]
[1729356174236,37.6532283,156.73,156.62,15.0173]
[1729356178244,23.776884,156.69,156.62,15.0173]
[1729356184009,30.159184,156.69,156.62,15.0173]
[1729356185008,23.776884,156.69,156.62,15.0173]
[1729356185501,23.776884,156.66,156.58,22.976]
[1729356200899,30.160084,156.66,156.58,22.976]
[1729356201228,23.776884,156.66,156.58,22.976]
[1729356207404,0.6149,156.72,156.58,22.976]
[1729356207637,1.10926838,156.74,156.61,15.5414]
[1729356207797,0.6149,156.76,156.61,15.5414]
[1729356207798,3.9507,156.73,156.61,15.5414]
[1729356208612,10.3312,156.73,156.61,15.5414]
[1729356208930,23.776884,156.72,156.61,15.5414]
[1729356209131,10.3312,156.73,156.61,15.5414]
[1729356210303,23.776884,156.72,156.61,15.5414]
[1729356219736,30.157884,156.72,156.61,15.5414]
[1729356220811,6.3815,156.71,156.61,15.5414]
[1729356221014,23.776884,156.7,156.61,15.5414]
[1729356221334,30.158584,156.7,156.61,15.5414]
[1729356221937,23.776884,156.71,156.61,15.5414]
[1729356226330,6.64371887,156.72,156.61,15.5414]
[1729356226537,6.38,156.74,156.61,23.14384091]
[1729356226842,13.02238914,156.74,156.62,6.3566]
[1729356227642,23.776884,156.73,156.62,6.3566]
[1729356228345,23.776884,156.71,156.62,6.3566]
[1729356228536,23.776884,156.73,156.62,6.3566]
[1729356230038,23.776884,156.73,156.63,16.5085]
[1729356233628,30.157384,156.73,156.63,16.5085]
[1729356240087,23.776884,156.71,156.63,16.5085]
[1729356241762,30.158084,156.71,156.63,16.5085]
[1729356247164,23.776884,156.71,156.63,16.5085]
[1729356247340,23.776884,156.72,156.63,16.5085]
[1729356253074,23.776884,156.7,156.63,16.5085]
[1729356255453,23.776884,156.69,156.63,16.5085]
[1729356258663,23.776884,156.67,156.63,16.5085]
[1729356258881,23.776884,156.69,156.63,16.5085]
[1729356266898,23.776884,156.67,156.63,16.5085]
[1729356268587,23.776884,156.65,156.63,16.5085]
[1729356268796,23.776884,156.67,156.63,16.5085]
[1729356270797,6.64831501,156.69,156.63,16.5085]
[1729356271099,23.776884,156.7,156.63,16.5085]
[1729356271695,23.776884,156.69,156.63,16.5085]
[1729356274974,30.158884,156.69,156.63,16.5085]
[1729356282408,30.158884,156.69,156.57,7.76204091]
[1729356282409,6.3827,156.68,156.59,15.3484]
[1729356282706,23.776884,156.67,156.59,15.3484]
[1729356289215,19.16,156.66,156.59,15.3484]
[1729356289513,23.776884,156.67,156.59,15.3484]
[1729356294611,42.936884,156.68,156.59,15.3484]
[1729356295004,30.160884,156.64,156.58,6.1611]
[1729356295319,23.776884,156.64,156.58,6.1611]
[1729356296500,23.776884,156.6,156.58,6.1611]
[1729356297527,30.0,156.59,156.58,6.1611]
[1729356309396,30.0,156.59,156.57,0.1596]
[1729356310819,23.776884,156.6,156.57,0.1596]
[1729356311913,6.64159819,156.65,156.59,15.1862]
[1729356312113,19.16,156.7,156.59,15.1862]
[1729356312427,13.02510275,156.71,156.59,15.1862]
[1729356314426,23.776884,156.7,156.59,15.1862]
[1729356315806,23.776884,156.68,156.59,15.1862]
[1729356316040,6.3825,156.68,156.59,15.1862]
[1729356316203,42.936884,156.7,156.59,15.1862]
[1729356316403,23.776884,156.66,156.59,15.1862]
[1729356316604,30.160384,156.66,156.59,15.1862]
[1729356316904,23.776884,156.64,156.59,15.1862]
[1729356317726,23.776884,156.64,156.58,6.0895]
[1729356319719,23.776884,156.64,156.57,0.1596]
[1729356319925,23.776884,156.62,156.57,0.1596]
[1729356320440,30.161084,156.64,156.57,0.1596]